[Event "World Junior Chess Championship U20 2022"]
[White "Gorshtein, Ido"]
[Black "Stremavicius, Pijus"]
[WhiteFideId "2815532"]
[BlackFideId "12812730"]
[WhiteElo "2471"]
[BlackElo "2363"]
[Result "1-0"]
[Round "04"]
[TimeControl "5400+30"]
[Date "2022.10.14"]
[WhiteClock "0:27:04"]
[BlackClock "0:12:30"]

1. c4 {[%clk 1:30:42]}  e6 {[%clk 1:30:50]} 2. g3 {[%clk 1:31:02]}  f5 {[%clk 1:30:22]} 3. Bg2 {[%clk 1:29:53]}  Nf6 {[%clk 1:30:26]} 4. Nf3 {[%clk 1:29:03]}  d5 {[%clk 1:30:22]} 5. O-O {[%clk 1:28:30]}  Be7 {[%clk 1:30:23]} 6. Qc2 {[%clk 1:28:30]}  Nc6 {[%clk 1:28:24]} 7. cxd5 {[%clk 1:27:50]}  exd5 {[%clk 1:28:18]} 8. d3 {[%clk 1:28:11]}  O-O {[%clk 1:24:02]} 9. a3 {[%clk 1:26:36]}  a5 {[%clk 1:22:23]} 10. b3 {[%clk 1:24:22]}  Re8 {[%clk 1:12:28]} 11. Nc3 {[%clk 1:17:55]}  Bf8 {[%clk 1:07:42]} 12. Bb2 {[%clk 1:04:45]}  f4 {[%clk 0:54:54]} 13. gxf4 {[%clk 1:04:51]}  Ne7 {[%clk 0:46:17]} 14. e3 {[%clk 1:03:11]}  Ng6 {[%clk 0:45:40]} 15. Ne2 {[%clk 1:03:00]}  c6 {[%clk 0:44:48]} 16. Ng3 {[%clk 1:01:48]}  Bg4 {[%clk 0:41:35]} 17. Ne5 {[%clk 1:01:28]}  Nxe5 {[%clk 0:38:19]} 18. fxe5 {[%clk 1:01:38]}  Nd7 {[%clk 0:38:31]} 19. h3 {[%clk 1:01:02]}  Be6 {[%clk 0:38:39]} 20. f4 {[%clk 1:01:02]}  g6 {[%clk 0:38:48]} 21. Kh2 {[%clk 1:01:00]}  Qb6 {[%clk 0:36:02]} 22. d4 {[%clk 0:59:25]}  Rac8 {[%clk 0:36:22]} 23. f5 {[%clk 0:53:57]}  gxf5 {[%clk 0:36:48]} 24. Rxf5 {[%clk 0:54:19]}  Bxf5 {[%clk 0:36:55]} 25. Nxf5 {[%clk 0:53:57]}  Kh8 {[%clk 0:36:56]} 26. Rg1 {[%clk 0:53:50]}  Qc7 {[%clk 0:35:26]} 27. Bf3 {[%clk 0:49:09]}  Re6 {[%clk 0:35:09]} 28. Kh1 {[%clk 0:47:35]}  Nb6 {[%clk 0:30:46]} 29. Bh5 {[%clk 0:46:25]}  a4 {[%clk 0:25:36]} 30. e4 {[%clk 0:40:59]}  axb3 {[%clk 0:23:56]} 31. Qxb3 {[%clk 0:41:06]}  Bh6 {[%clk 0:22:19]} 32. Nd6 {[%clk 0:35:01]}  Rf8 {[%clk 0:22:06]} 33. Qg3 {[%clk 0:31:47]}  Re7 {[%clk 0:15:12]} 34. Nf5 {[%clk 0:30:38]}  Re6 {[%clk 0:15:26]} 35. Qg4 {[%clk 0:27:30]}  Nc4 {[%clk 0:14:17]} 36. Nxh6 {[%clk 0:26:56]}  Rxh6 {[%clk 0:14:39]} 37. Bc1 {[%clk 0:27:21]}  Rxh5 {[%clk 0:13:00]} 38. Qxh5 {[%clk 0:27:48]}  Qf7 {[%clk 0:11:08]} 39. Qxf7 {[%clk 0:27:06]}  Rxf7 {[%clk 0:11:36]} 40. Bg5 {[%clk 0:27:23]}  h6 {[%clk 0:12:03]} 41. e6 {[%clk 0:27:12]}  Rf3 {[%clk 0:12:02]} 42. e7 {[%clk 0:26:24]}  Nd6 {[%clk 0:12:28]} 43. Bf6+ {[%clk 0:26:36]}  Rxf6 {[%clk 0:12:30]} 44. e5 {[%clk 0:27:04]} 1-0


[Site "http://www.chessbomb.com"]

[Event "World Junior Chess Championship U20 2022"]
[White "Prraneeth, Vuppala"]
[Black "Rohith, Krishna S"]
[WhiteFideId "46622373"]
[BlackFideId "46617051"]
[WhiteElo "2451"]
[BlackElo "2370"]
[Result "1/2-1/2"]
[Round "04"]
[TimeControl "5400+30"]
[Date "2022.10.14"]
[WhiteClock "0:02:27"]
[BlackClock "0:08:46"]

1. e4 {[%clk 1:30:43]}  e5 {[%clk 1:30:43]} 2. Nf3 {[%clk 1:30:34]}  Nc6 {[%clk 1:31:07]} 3. Bb5 {[%clk 1:30:57]}  a6 {[%clk 1:31:30]} 4. Ba4 {[%clk 1:30:56]}  Nf6 {[%clk 1:31:49]} 5. O-O {[%clk 1:31:08]}  Be7 {[%clk 1:32:00]} 6. Re1 {[%clk 1:31:06]}  b5 {[%clk 1:32:16]} 7. Bb3 {[%clk 1:31:30]}  d6 {[%clk 1:32:14]} 8. c3 {[%clk 1:31:07]}  O-O {[%clk 1:32:21]} 9. h3 {[%clk 1:31:28]}  Na5 {[%clk 1:32:33]} 10. Bc2 {[%clk 1:31:41]}  c5 {[%clk 1:32:57]} 11. d4 {[%clk 1:32:02]}  Qc7 {[%clk 1:33:20]} 12. d5 {[%clk 1:31:17]}  Bd7 {[%clk 1:32:25]} 13. b3 {[%clk 1:30:13]}  Rfe8 {[%clk 1:32:46]} 14. Be3 {[%clk 1:23:26]}  g6 {[%clk 1:28:09]} 15. Nbd2 {[%clk 1:20:55]}  Nh5 {[%clk 1:23:44]} 16. Nf1 {[%clk 1:01:32]}  Nb7 {[%clk 1:23:42]} 17. a4 {[%clk 0:56:24]}  bxa4 {[%clk 1:14:20]} 18. bxa4 {[%clk 0:55:16]}  Na5 {[%clk 1:05:39]} 19. N1d2 {[%clk 0:50:14]}  Reb8 {[%clk 0:59:11]} 20. Bd3 {[%clk 0:33:49]}  Ng7 {[%clk 0:53:13]} 21. Qe2 {[%clk 0:21:22]}  Bc8 {[%clk 0:47:26]} 22. Nc4 {[%clk 0:12:15]}  Nxc4 {[%clk 0:37:48]} 23. Bxc4 {[%clk 0:12:43]}  Kh8 {[%clk 0:37:06]} 24. Ng5 {[%clk 0:09:32]}  Bf6 {[%clk 0:26:10]} 25. Qd2 {[%clk 0:04:32]}  Qe7 {[%clk 0:18:37]} 26. f4 {[%clk 0:04:15]}  Nh5 {[%clk 0:18:38]} 27. fxe5 {[%clk 0:02:31]}  Bxe5 {[%clk 0:19:00]} 28. Nf3 {[%clk 0:02:17]}  Bg3 {[%clk 0:17:41]} 29. Bf2 {[%clk 0:01:51]}  Bf4 {[%clk 0:17:11]} 30. Be3 {[%clk 0:01:40]}  Qxe4 {[%clk 0:15:14]} 31. Bd3 {[%clk 0:01:53]}  Bxe3+ {[%clk 0:12:37]} 32. Rxe3 {[%clk 0:02:21]}  Qf4 {[%clk 0:12:55]} 33. Rf1 {[%clk 0:02:12]}  Bxh3 {[%clk 0:09:34]} 34. Ne1 {[%clk 0:01:11]}  Rb2 {[%clk 0:06:01]} 35. Bc2 {[%clk 0:01:07]}  Qg4 {[%clk 0:03:58]} 36. Rxh3 {[%clk 0:01:33]}  f5 {[%clk 0:04:24]} 37. Nd3 {[%clk 0:00:43]}  Ra2 {[%clk 0:04:48]} 38. Nf2 {[%clk 0:00:43]}  Qxa4 {[%clk 0:03:03]} 39. Rc1 {[%clk 0:00:52]}  Qf4 {[%clk 0:02:47]} 40. Re3 {[%clk 0:00:54]}  Rf8 {[%clk 0:01:41]} 41. Nh3 {[%clk 0:18:33]}  Qh6 {[%clk 0:30:13]} 42. Rce1 {[%clk 0:16:30]}  Nf6 {[%clk 0:28:27]} 43. Qd1 {[%clk 0:10:41]}  Qh4 {[%clk 0:28:02]} 44. Qb1 {[%clk 0:08:27]}  f4 {[%clk 0:27:10]} 45. Nxf4 {[%clk 0:00:56]}  Qxf4 {[%clk 0:26:12]} 46. g3 {[%clk 0:01:20]}  Qh6 {[%clk 0:24:44]} 47. Qxa2 {[%clk 0:00:51]}  Ng4 {[%clk 0:25:05]} 48. R3e2 {[%clk 0:01:11]}  Qh3 {[%clk 0:25:17]} 49. Qb1 {[%clk 0:00:46]}  Qxg3+ {[%clk 0:15:29]} 50. Rg2 {[%clk 0:01:11]}  Qh3 {[%clk 0:15:43]} 51. Qd1 {[%clk 0:00:43]}  Ne3 {[%clk 0:15:23]} 52. Qe2 {[%clk 0:00:34]}  Nxg2 {[%clk 0:15:48]} 53. Qxg2 {[%clk 0:00:49]}  Qxc3 {[%clk 0:16:13]} 54. Re4 {[%clk 0:00:40]}  a5 {[%clk 0:15:36]} 55. Qe2 {[%clk 0:00:35]}  Qg3+ {[%clk 0:15:27]} 56. Qg2 {[%clk 0:01:00]}  Qc3 {[%clk 0:15:31]} 57. Qe2 {[%clk 0:01:26]}  Rf7 {[%clk 0:13:41]} 58. Bd3 {[%clk 0:01:15]}  Kg7 {[%clk 0:12:46]} 59. Kg2 {[%clk 0:01:09]}  Qf6 {[%clk 0:12:21]} 60. Qe3 {[%clk 0:01:24]}  Qf5 {[%clk 0:10:59]} 61. Kg3 {[%clk 0:01:21]}  h5 {[%clk 0:08:58]} 62. Re6 {[%clk 0:01:15]}  Qg4+ {[%clk 0:08:54]} 63. Kh2 {[%clk 0:01:44]}  Qh4+ {[%clk 0:08:19]} 64. Kg2 {[%clk 0:02:03]}  Qg4+ {[%clk 0:08:46]} 65. Kh2 {[%clk 0:02:27]} 1/2-1/2


[Site "http://www.chessbomb.com"]

[Event "World Junior Chess Championship U20 2022"]
[White "Gatineau, Yovann"]
[Black "Gurel, Ediz"]
[WhiteFideId "26028999"]
[BlackFideId "44507356"]
[WhiteElo "2375"]
[BlackElo "2445"]
[Result "1/2-1/2"]
[Round "04"]
[TimeControl "5400+30"]
[Date "2022.10.14"]
[WhiteClock "0:01:20"]
[BlackClock "0:07:13"]

1. d4 {[%clk 1:27:16]}  d5 {[%clk 1:30:56]} 2. c4 {[%clk 1:27:30]}  c6 {[%clk 1:31:22]} 3. Nf3 {[%clk 1:27:42]}  Nf6 {[%clk 1:31:47]} 4. Qc2 {[%clk 1:28:07]}  g6 {[%clk 1:32:05]} 5. Nc3 {[%clk 1:25:17]}  Bg7 {[%clk 1:31:44]} 6. cxd5 {[%clk 1:25:37]}  cxd5 {[%clk 1:32:01]} 7. Bf4 {[%clk 1:25:58]}  O-O {[%clk 1:29:54]} 8. e3 {[%clk 1:25:59]}  Nc6 {[%clk 1:28:38]} 9. h3 {[%clk 1:24:40]}  Bf5 {[%clk 1:19:30]} 10. Qb3 {[%clk 1:24:49]}  Na5 {[%clk 1:16:02]} 11. Qb4 {[%clk 1:24:31]}  Rc8 {[%clk 1:10:25]} 12. Be2 {[%clk 1:23:48]}  Ne4 {[%clk 1:02:33]} 13. O-O {[%clk 1:23:29]}  Nxc3 {[%clk 0:53:33]} 14. bxc3 {[%clk 1:23:47]}  f6 {[%clk 0:54:01]} 15. Rfc1 {[%clk 1:18:27]}  Be6 {[%clk 0:51:41]} 16. Nd2 {[%clk 1:13:59]}  Bf7 {[%clk 0:44:14]} 17. Nb3 {[%clk 1:10:12]}  Nc4 {[%clk 0:43:27]} 18. Qxb7 {[%clk 1:04:37]}  e5 {[%clk 0:43:52]} 19. Bg3 {[%clk 1:04:47]}  Nd6 {[%clk 0:40:46]} 20. Qb4 {[%clk 0:52:52]}  Ne4 {[%clk 0:40:27]} 21. Bh2 {[%clk 0:52:16]}  Qb6 {[%clk 0:36:59]} 22. Qa3 {[%clk 0:42:26]}  Rxc3 {[%clk 0:34:10]} 23. Rxc3 {[%clk 0:38:41]}  Nxc3 {[%clk 0:34:39]} 24. Bd3 {[%clk 0:37:56]}  Re8 {[%clk 0:27:12]} 25. Rc1 {[%clk 0:23:06]}  Bf8 {[%clk 0:27:28]} 26. Qb2 {[%clk 0:22:06]}  Na4 {[%clk 0:23:10]} 27. Qe2 {[%clk 0:19:42]}  Bb4 {[%clk 0:16:58]} 28. Qc2 {[%clk 0:13:38]}  Bf8 {[%clk 0:08:15]} 29. Qc6 {[%clk 0:08:45]}  Nb2 {[%clk 0:06:01]} 30. Qxb6 {[%clk 0:05:55]}  axb6 {[%clk 0:06:30]} 31. Bb5 {[%clk 0:06:15]}  Re6 {[%clk 0:06:43]} 32. Rc2 {[%clk 0:05:01]}  Ba3 {[%clk 0:06:46]} 33. Nd2 {[%clk 0:04:21]}  exd4 {[%clk 0:06:10]} 34. Nb1 {[%clk 0:03:21]}  d3 {[%clk 0:03:53]} 35. Rd2 {[%clk 0:03:14]}  Nc4 {[%clk 0:04:11]} 36. Rxd3 {[%clk 0:02:33]}  Bc5 {[%clk 0:02:06]} 37. Nc3 {[%clk 0:01:27]}  Na3 {[%clk 0:02:26]} 38. Bd7 {[%clk 0:01:28]}  Re7 {[%clk 0:01:55]} 39. Nxd5 {[%clk 0:01:48]}  Bxd5 {[%clk 0:02:22]} 40. Rxd5 {[%clk 0:02:12]}  Nc4 {[%clk 0:01:30]} 41. Bb5 {[%clk 0:25:51]}  Ne5 {[%clk 0:31:11]} 42. Kf1 {[%clk 0:24:55]}  Bb4 {[%clk 0:30:41]} 43. Rd4 {[%clk 0:22:58]}  Bc5 {[%clk 0:28:35]} 44. Rd8+ {[%clk 0:22:38]}  Kg7 {[%clk 0:29:00]} 45. Rc8 {[%clk 0:16:02]}  Bd6 {[%clk 0:27:41]} 46. a4 {[%clk 0:14:38]}  h6 {[%clk 0:22:40]} 47. Ke2 {[%clk 0:13:49]}  f5 {[%clk 0:20:28]} 48. Rd8 {[%clk 0:12:58]}  Bb4 {[%clk 0:19:50]} 49. Rb8 {[%clk 0:09:42]}  Bc5 {[%clk 0:19:45]} 50. Rc8 {[%clk 0:09:39]}  Bb4 {[%clk 0:19:44]} 51. f3 {[%clk 0:05:50]}  g5 {[%clk 0:17:02]} 52. Rc7 {[%clk 0:05:20]}  Kf6 {[%clk 0:17:23]} 53. Rxe7 {[%clk 0:05:29]}  Bxe7 {[%clk 0:17:52]} 54. g4 {[%clk 0:05:32]}  Bc5 {[%clk 0:15:42]} 55. Bg3 {[%clk 0:04:57]}  Bb4 {[%clk 0:11:49]} 56. Bf2 {[%clk 0:04:16]}  Bc3 {[%clk 0:07:51]} 57. Bd3 {[%clk 0:03:06]}  fxg4 {[%clk 0:07:22]} 58. hxg4 {[%clk 0:03:33]}  Nd7 {[%clk 0:06:44]} 59. Bb5 {[%clk 0:03:39]}  Ne5 {[%clk 0:05:14]} 60. e4 {[%clk 0:00:58]}  Ba5 {[%clk 0:05:42]} 61. Bd4 {[%clk 0:01:05]}  Ke6 {[%clk 0:06:12]} 62. Ke3 {[%clk 0:00:58]}  Kd6 {[%clk 0:06:39]} 63. Kf2 {[%clk 0:00:47]}  Ke6 {[%clk 0:06:38]} 64. Kg3 {[%clk 0:00:55]}  Be1+ {[%clk 0:06:38]} 65. Kg2 {[%clk 0:01:23]}  Ba5 {[%clk 0:07:05]} 66. Kf2 {[%clk 0:01:26]}  Kd6 {[%clk 0:07:08]} 67. Ke2 {[%clk 0:01:26]}  Ke6 {[%clk 0:07:29]} 68. Ke3 {[%clk 0:01:49]}  Kf6 {[%clk 0:04:58]} 69. Bc4 {[%clk 0:01:46]}  Bb4 {[%clk 0:04:37]} 70. Bb3 {[%clk 0:01:45]}  Bc5 {[%clk 0:04:43]} 71. Bxc5 {[%clk 0:01:27]}  bxc5 {[%clk 0:05:13]} 72. Bd5 {[%clk 0:01:38]}  c4 {[%clk 0:05:32]} 73. a5 {[%clk 0:01:59]}  c3 {[%clk 0:06:01]} 74. a6 {[%clk 0:01:54]}  c2 {[%clk 0:05:49]} 75. Kd2 {[%clk 0:02:17]}  Nd3 {[%clk 0:06:16]} 76. Kxc2 {[%clk 0:01:50]}  Nb4+ {[%clk 0:06:46]} 77. Kc3 {[%clk 0:02:07]}  Nxa6 {[%clk 0:07:14]} 78. Kd4 {[%clk 0:02:24]}  Nb4 {[%clk 0:06:42]} 79. e5+ {[%clk 0:02:33]}  Ke7 {[%clk 0:07:11]} 80. Ke4 {[%clk 0:02:43]}  Nc2 {[%clk 0:07:38]} 81. Bb3 {[%clk 0:02:32]}  Ne1 {[%clk 0:08:05]} 82. f4 {[%clk 0:00:36]}  gxf4 {[%clk 0:08:32]} 83. Kxf4 {[%clk 0:01:03]}  Nd3+ {[%clk 0:03:39]} 84. Kf5 {[%clk 0:01:19]}  Nf2 {[%clk 0:04:05]} 85. Bc2 {[%clk 0:00:32]}  Nh3 {[%clk 0:03:53]} 86. Bb3 {[%clk 0:00:46]}  Nf2 {[%clk 0:04:12]} 87. Bd5 {[%clk 0:00:36]}  Nh3 {[%clk 0:03:34]} 88. Ba2 {[%clk 0:00:41]}  Nf2 {[%clk 0:03:45]} 89. Bc4 {[%clk 0:01:02]}  Nh3 {[%clk 0:03:47]} 90. Kg6 {[%clk 0:00:44]}  Nf2 {[%clk 0:04:14]} 91. Kh5 {[%clk 0:00:33]}  Kf8 {[%clk 0:04:15]} 92. e6 {[%clk 0:00:33]}  Ke7 {[%clk 0:04:31]} 93. Bb3 {[%clk 0:00:36]}  Kf6 {[%clk 0:04:49]} 94. Ba2 {[%clk 0:00:38]}  Ke7 {[%clk 0:05:09]} 95. Bd5 {[%clk 0:00:55]}  Kf6 {[%clk 0:05:35]} 96. Bc4 {[%clk 0:01:14]}  Ke7 {[%clk 0:05:58]} 97. Kh4 {[%clk 0:00:52]}  Kf6 {[%clk 0:06:08]} 98. Bd5 {[%clk 0:01:01]}  Nd3 {[%clk 0:05:26]} 99. Be4 {[%clk 0:01:08]}  Nf4 {[%clk 0:05:50]} 100. Bf5 {[%clk 0:01:17]}  Ke7 {[%clk 0:06:18]} 101. g5 {[%clk 0:00:34]}  hxg5+ {[%clk 0:06:46]} 102. Kxg5 {[%clk 0:00:56]}  Nxe6+ {[%clk 0:07:13]} 103. Kh4 {[%clk 0:01:20]} 1/2-1/2


[Site "http://www.chessbomb.com"]

[Event "World Junior Chess Championship U20 2022"]
[White "Kozak, Antoni"]
[Black "Galaviz Medina, Sion Radamantys"]
[WhiteFideId "21832030"]
[BlackFideId "5123119"]
[WhiteElo "2440"]
[BlackElo "2345"]
[Result "0-1"]
[Round "04"]
[TimeControl "5400+30"]
[Date "2022.10.14"]
[WhiteClock "0:30:24"]
[BlackClock "0:15:50"]

1. e4 {[%clk 1:30:59]}  c5 {[%clk 1:30:17]} 2. Nf3 {[%clk 1:31:25]}  d6 {[%clk 1:30:44]} 3. d4 {[%clk 1:31:51]}  cxd4 {[%clk 1:31:10]} 4. Nxd4 {[%clk 1:32:19]}  Nf6 {[%clk 1:31:34]} 5. Nc3 {[%clk 1:32:46]}  a6 {[%clk 1:31:59]} 6. Bd3 {[%clk 1:33:13]}  e5 {[%clk 1:28:47]} 7. Nde2 {[%clk 1:33:35]}  Be6 {[%clk 1:19:56]} 8. O-O {[%clk 1:28:14]}  Be7 {[%clk 1:20:10]} 9. f4 {[%clk 1:26:16]}  O-O {[%clk 1:16:57]} 10. f5 {[%clk 1:19:59]}  Bd7 {[%clk 1:14:28]} 11. Bg5 {[%clk 1:06:56]}  b5 {[%clk 1:07:02]} 12. a4 {[%clk 0:58:10]}  b4 {[%clk 0:50:24]} 13. Bxf6 {[%clk 0:58:09]}  Bxf6 {[%clk 0:50:52]} 14. Nd5 {[%clk 0:58:33]}  Bc6 {[%clk 0:51:17]} 15. Bc4 {[%clk 0:57:45]}  Nd7 {[%clk 0:51:42]} 16. a5 {[%clk 0:55:10]}  Bxd5 {[%clk 0:39:58]} 17. Qxd5 {[%clk 0:51:51]}  Qc7 {[%clk 0:38:06]} 18. Kh1 {[%clk 0:50:09]}  Qc5 {[%clk 0:32:46]} 19. Qd3 {[%clk 0:49:07]}  Bd8 {[%clk 0:33:10]} 20. Nc1 {[%clk 0:41:58]}  Nf6 {[%clk 0:27:07]} 21. Nb3 {[%clk 0:41:17]}  Qc6 {[%clk 0:27:05]} 22. Nd2 {[%clk 0:41:40]}  Ra7 {[%clk 0:25:43]} 23. Rfc1 {[%clk 0:37:11]}  g6 {[%clk 0:18:56]} 24. Rf1 {[%clk 0:34:40]}  Kg7 {[%clk 0:18:21]} 25. Bd5 {[%clk 0:31:26]}  Qc5 {[%clk 0:17:13]} 26. Nb3 {[%clk 0:27:47]}  Qc8 {[%clk 0:16:39]} 27. Ra4 {[%clk 0:26:05]}  Rc7 {[%clk 0:16:57]} 28. Rxb4 {[%clk 0:25:56]}  Rxc2 {[%clk 0:16:45]} 29. Bb7 {[%clk 0:15:46]}  Qc7 {[%clk 0:17:09]} 30. Bxa6 {[%clk 0:16:09]}  Rxb2 {[%clk 0:17:25]} 31. Rb7 {[%clk 0:14:33]}  Qc6 {[%clk 0:17:30]} 32. Nd4 {[%clk 0:14:31]}  exd4 {[%clk 0:17:50]} 33. Rxb2 {[%clk 0:14:58]}  Bxa5 {[%clk 0:17:42]} 34. fxg6 {[%clk 0:14:10]}  hxg6 {[%clk 0:17:32]} 35. Bc4 {[%clk 0:10:26]}  Qxe4 {[%clk 0:13:33]} 36. Qa3 {[%clk 0:10:44]}  Bc7 {[%clk 0:07:43]} 37. Rbf2 {[%clk 0:10:17]}  d5 {[%clk 0:07:56]} 38. Bd3 {[%clk 0:03:40]}  Qe5 {[%clk 0:08:21]} 39. g3 {[%clk 0:03:39]}  Ne4 {[%clk 0:07:19]} 40. Rf4 {[%clk 0:03:09]}  f5 {[%clk 0:07:30]} 41. Kg2 {[%clk 0:29:52]}  Bd6 {[%clk 0:32:11]} 42. Qa4 {[%clk 0:29:46]}  Rb8 {[%clk 0:30:47]} 43. Qd7+ {[%clk 0:29:57]}  Qe7 {[%clk 0:30:42]} 44. Qxe7+ {[%clk 0:30:16]}  Bxe7 {[%clk 0:31:10]} 45. Rb1 {[%clk 0:29:52]}  Ra8 {[%clk 0:25:05]} 46. Rb2 {[%clk 0:26:12]}  Ra3 {[%clk 0:22:56]} 47. Bb5 {[%clk 0:26:33]}  d3 {[%clk 0:22:17]} 48. Rf3 {[%clk 0:26:58]}  Bf6 {[%clk 0:22:08]} 49. Rb1 {[%clk 0:27:25]}  Ra2+ {[%clk 0:22:33]} 50. Kh1 {[%clk 0:27:51]}  d2 {[%clk 0:21:49]} 51. Be2 {[%clk 0:27:56]}  Nc3 {[%clk 0:21:27]} 52. Rxc3 {[%clk 0:28:22]}  Bxc3 {[%clk 0:21:53]} 53. Rd1 {[%clk 0:28:45]}  Kf6 {[%clk 0:21:43]} 54. Kg2 {[%clk 0:29:11]}  Ke5 {[%clk 0:22:09]} 55. Kf3 {[%clk 0:29:25]}  Ra7 {[%clk 0:18:49]} 56. Ke3 {[%clk 0:29:43]}  g5 {[%clk 0:18:06]} 57. h4 {[%clk 0:30:10]}  g4 {[%clk 0:17:24]} 58. Bd3 {[%clk 0:30:03]}  Kf6 {[%clk 0:16:02]} 59. Be2 {[%clk 0:28:38]}  Re7+ {[%clk 0:16:15]} 60. Kf2 {[%clk 0:28:59]}  Re6 {[%clk 0:14:39]} 61. Rb1 {[%clk 0:29:04]}  Bd4+ {[%clk 0:15:01]} 62. Kf1 {[%clk 0:29:30]}  Re3 {[%clk 0:15:25]} 63. Rd1 {[%clk 0:29:56]}  Rxg3 {[%clk 0:15:50]} 64. Rxd2 {[%clk 0:30:24]}  Rg1# {[%clk 0:15:50]} 0-1


[Site "http://www.chessbomb.com"]

[Event "World Junior Chess Championship U20 2022"]
[White "Vestby-Ellingsen, Mads"]
[Black "Baenziger, Fabian"]
[WhiteFideId "1520857"]
[BlackFideId "1330110"]
[WhiteElo "2365"]
[BlackElo "2439"]
[Result "1/2-1/2"]
[Round "04"]
[TimeControl "5400+30"]
[Date "2022.10.14"]
[WhiteClock "0:01:19"]
[BlackClock "0:19:27"]

1. d4 {[%clk 1:30:32]}  d5 {[%clk 1:30:42]} 2. c4 {[%clk 1:30:42]}  c6 {[%clk 1:30:56]} 3. Nf3 {[%clk 1:30:54]}  Nf6 {[%clk 1:31:16]} 4. Qc2 {[%clk 1:31:05]}  g6 {[%clk 1:30:58]} 5. cxd5 {[%clk 1:30:51]}  cxd5 {[%clk 1:31:22]} 6. Bf4 {[%clk 1:30:50]}  Nc6 {[%clk 1:30:20]} 7. Nc3 {[%clk 1:27:15]}  Bg7 {[%clk 1:30:24]} 8. e3 {[%clk 1:27:11]}  O-O {[%clk 1:27:07]} 9. Be2 {[%clk 1:27:22]}  Nh5 {[%clk 1:23:12]} 10. Bg5 {[%clk 1:27:34]}  Qd6 {[%clk 1:09:01]} 11. O-O {[%clk 1:23:47]}  h6 {[%clk 1:04:01]} 12. Bh4 {[%clk 1:23:49]}  Bf5 {[%clk 1:02:39]} 13. Qb3 {[%clk 1:23:00]}  g5 {[%clk 1:03:05]} 14. Bg3 {[%clk 1:17:02]}  Nxg3 {[%clk 1:03:30]} 15. hxg3 {[%clk 1:17:18]}  e6 {[%clk 1:03:26]} 16. Rac1 {[%clk 0:59:16]}  Rab8 {[%clk 1:00:03]} 17. Na4 {[%clk 0:42:23]}  Rfc8 {[%clk 0:51:29]} 18. Nc5 {[%clk 0:36:10]}  Rc7 {[%clk 0:45:31]} 19. Bd3 {[%clk 0:30:43]}  Bxd3 {[%clk 0:42:33]} 20. Nxd3 {[%clk 0:30:45]}  Rbc8 {[%clk 0:40:56]} 21. Qa4 {[%clk 0:28:09]}  b6 {[%clk 0:31:34]} 22. Rc2 {[%clk 0:18:25]}  Nb8 {[%clk 0:28:18]} 23. Rfc1 {[%clk 0:15:42]}  Rxc2 {[%clk 0:28:14]} 24. Rxc2 {[%clk 0:16:03]}  Rxc2 {[%clk 0:28:38]} 25. Qxc2 {[%clk 0:16:18]}  Qc6 {[%clk 0:22:03]} 26. Qxc6 {[%clk 0:13:00]}  Nxc6 {[%clk 0:22:30]} 27. Kf1 {[%clk 0:13:05]}  Kf8 {[%clk 0:22:36]} 28. Ke2 {[%clk 0:12:58]}  Ke7 {[%clk 0:20:23]} 29. a4 {[%clk 0:05:38]}  Kd6 {[%clk 0:19:45]} 30. b4 {[%clk 0:03:45]}  a6 {[%clk 0:19:24]} 31. Kd2 {[%clk 0:02:22]}  f6 {[%clk 0:17:04]} 32. Nfe1 {[%clk 0:01:21]}  e5 {[%clk 0:14:01]} 33. Nc2 {[%clk 0:01:44]}  e4 {[%clk 0:14:01]} 34. Nc1 {[%clk 0:01:37]}  f5 {[%clk 0:12:32]} 35. Na2 {[%clk 0:00:43]}  Nd8 {[%clk 0:04:11]} 36. Ke2 {[%clk 0:00:32]}  Bf8 {[%clk 0:04:03]} 37. b5 {[%clk 0:00:32]}  a5 {[%clk 0:02:33]} 38. f3 {[%clk 0:00:39]}  h5 {[%clk 0:02:01]} 39. f4 {[%clk 0:00:33]}  g4 {[%clk 0:00:36]} 40. Kd2 {[%clk 0:00:33]}  Ke6 {[%clk 0:01:01]} 41. Nc1 {[%clk 0:21:12]}  Nf7 {[%clk 0:30:05]} 42. Ne2 {[%clk 0:19:02]}  Nh8 {[%clk 0:30:13]} 43. Kc3 {[%clk 0:09:39]}  Ng6 {[%clk 0:30:35]} 44. Kb3 {[%clk 0:09:47]}  h4 {[%clk 0:25:43]} 45. gxh4 {[%clk 0:10:06]}  Nxh4 {[%clk 0:26:09]} 46. g3 {[%clk 0:04:03]}  Nf3 {[%clk 0:25:47]} 47. Kc3 {[%clk 0:02:44]}  Be7 {[%clk 0:26:11]} 48. Kb2 {[%clk 0:00:38]}  Bd6 {[%clk 0:19:58]} 49. Kb3 {[%clk 0:00:56]}  Bf8 {[%clk 0:19:55]} 50. Kb2 {[%clk 0:01:11]}  Nd2 {[%clk 0:20:21]} 51. Kc3 {[%clk 0:01:12]}  Nc4 {[%clk 0:20:35]} 52. Kb3 {[%clk 0:01:34]}  Be7 {[%clk 0:21:02]} 53. Ka2 {[%clk 0:00:45]}  Nd2 {[%clk 0:17:43]} 54. Kb2 {[%clk 0:01:09]}  Nf3 {[%clk 0:18:03]} 55. Kc3 {[%clk 0:01:26]}  Ne1 {[%clk 0:17:53]} 56. Nxe1 {[%clk 0:00:37]}  Bb4+ {[%clk 0:18:19]} 57. Kc2 {[%clk 0:01:00]}  Bxe1 {[%clk 0:18:45]} 58. Kd1 {[%clk 0:01:22]}  Bf2 {[%clk 0:18:47]} 59. Kd2 {[%clk 0:01:44]}  Kd6 {[%clk 0:19:14]} 60. Kd1 {[%clk 0:01:46]}  Bxe3 {[%clk 0:19:29]} 61. Ke1 {[%clk 0:01:38]}  Ke6 {[%clk 0:19:54]} 62. Kd1 {[%clk 0:00:41]}  Bf2 {[%clk 0:20:19]} 63. Kd2 {[%clk 0:01:03]}  Kf6 {[%clk 0:19:27]} 64. Kd1 {[%clk 0:01:19]} 1/2-1/2


[Site "http://www.chessbomb.com"]

[Event "World Junior Chess Championship U20 2022"]
[White "Milikow, Yoav"]
[Black "Utsab, Chatterjee"]
[WhiteFideId "2822237"]
[BlackFideId "46609148"]
[WhiteElo "2412"]
[BlackElo "2345"]
[Result "1/2-1/2"]
[Round "04"]
[TimeControl "5400+30"]
[Date "2022.10.14"]
[WhiteClock "0:20:18"]
[BlackClock "0:24:19"]

1. d4 {[%clk 1:30:57]}  d5 {[%clk 1:30:21]} 2. c4 {[%clk 1:31:20]}  e6 {[%clk 1:30:41]} 3. Nc3 {[%clk 1:31:44]}  Nf6 {[%clk 1:30:54]} 4. Nf3 {[%clk 1:31:39]}  Be7 {[%clk 1:31:12]} 5. g3 {[%clk 1:31:45]}  O-O {[%clk 1:31:21]} 6. Bg2 {[%clk 1:31:52]}  dxc4 {[%clk 1:31:22]} 7. Ne5 {[%clk 1:32:00]}  c5 {[%clk 1:26:55]} 8. dxc5 {[%clk 1:32:21]}  Qxd1+ {[%clk 1:26:11]} 9. Nxd1 {[%clk 1:32:45]}  Bxc5 {[%clk 1:26:25]} 10. Ne3 {[%clk 1:32:00]}  Nbd7 {[%clk 1:22:02]} 11. N5xc4 {[%clk 1:30:17]}  Rb8 {[%clk 1:20:08]} 12. Na5 {[%clk 1:27:06]}  Ne5 {[%clk 1:15:08]} 13. Bd2 {[%clk 1:20:00]}  b6 {[%clk 1:11:23]} 14. Nb3 {[%clk 1:19:29]}  Bd6 {[%clk 1:09:20]} 15. f4 {[%clk 1:18:18]}  Ned7 {[%clk 1:05:52]} 16. Nd4 {[%clk 1:10:44]}  a5 {[%clk 1:00:55]} 17. Nc6 {[%clk 0:59:28]}  Rb7 {[%clk 1:01:18]} 18. f5 {[%clk 0:57:45]}  Rc7 {[%clk 0:55:25]} 19. fxe6 {[%clk 0:57:00]}  Bb7 {[%clk 0:55:31]} 20. Nd4 {[%clk 0:41:52]}  Bxg2 {[%clk 0:55:08]} 21. Nxg2 {[%clk 0:42:15]}  Be5 {[%clk 0:54:49]} 22. Bf4 {[%clk 0:41:25]}  Rc4 {[%clk 0:53:47]} 23. Bxe5 {[%clk 0:33:57]}  Nxe5 {[%clk 0:54:12]} 24. Rd1 {[%clk 0:32:34]}  fxe6 {[%clk 0:46:59]} 25. Ne3 {[%clk 0:29:33]}  Ra4 {[%clk 0:45:59]} 26. a3 {[%clk 0:27:55]}  Nc4 {[%clk 0:37:47]} 27. Nxc4 {[%clk 0:27:46]}  Rxc4 {[%clk 0:38:16]} 28. b3 {[%clk 0:24:14]}  Rc3 {[%clk 0:38:28]} 29. Nxe6 {[%clk 0:23:51]}  Re8 {[%clk 0:38:07]} 30. Nd4 {[%clk 0:23:41]}  a4 {[%clk 0:36:02]} 31. bxa4 {[%clk 0:22:38]}  Rxa3 {[%clk 0:29:27]} 32. O-O {[%clk 0:22:48]}  Rxa4 {[%clk 0:29:45]} 33. Nf5 {[%clk 0:19:23]}  Rxe2 {[%clk 0:25:25]} 34. Rd8+ {[%clk 0:19:12]}  Kf7 {[%clk 0:25:48]} 35. Rb8 {[%clk 0:19:21]}  Raa2 {[%clk 0:23:01]} 36. Rb7+ {[%clk 0:19:37]}  Kf8 {[%clk 0:23:25]} 37. Rb8+ {[%clk 0:19:56]}  Kf7 {[%clk 0:23:53]} 38. Rb7+ {[%clk 0:20:18]}  Kf8 {[%clk 0:24:19]} 1/2-1/2


[Site "http://www.chessbomb.com"]